fUSD/lending_fUSD_20250421
["ID","MTS","AMOUNT","RATE_DAILY","PERIOD"]
[358513553,1745226638443,-13400.0,0.000482,17]
[358513554,1745226638451,-667.92956244,0.000482,20]
[358513555,1745226638460,-3887.62855921,0.00048224,4]
[358513556,1745226638470,-1000.0,0.00048234,14]
[358513558,1745226638478,-645.23403536,0.00048241,15]
[358513560,1745226638488,-15550.5142368,0.0004829,4]
[358513562,1745226638497,-16700.0,0.000483,17]
[358513564,1745226638507,-152.86,0.00048314,120]
[358513566,1745226638515,-645.23403536,0.00048315,15]
[358513568,1745226638524,-3887.62855921,0.00048342,4]
[358513570,1745226638534,-1403.73667196,0.00048352,15]
[358513572,1745226638543,-1403.73667189,0.00048364,15]
[358513574,1745226638552,-1403.73667189,0.00048376,15]
[358513576,1745226638560,-3887.62855921,0.00048379,4]
[358513578,1745226638569,-645.23403536,0.00048388,15]
[358513580,1745226638579,-1403.73667189,0.00048389,15]
[358513583,1745226638592,-3887.62855921,0.0004839,4]
[358513585,1745226638602,-3300.0,0.000484,17]
[358513587,1745226638611,-1403.73667189,0.00048401,15]
[358513589,1745226638620,-1403.73667189,0.00048413,15]
[358513590,1745226638630,-1403.73667189,0.00048425,15]
[358513592,1745226638639,-150.0,0.00048434,7]
[358513594,1745226638648,-1403.73667189,0.00048438,15]
[358513596,1745226638657,-150.0,0.00048439,7]
[358513598,1745226638667,-606.71109169,0.00048441,120]
[358513600,1745226638676,-50539.1712697,0.00048442,4]
[358513601,1745226638685,-1403.73667189,0.0004845,15]
[358513602,1745226638694,-150.0,0.00048452,7]
[358513603,1745226638703,-574.84949881,0.00048462,32]
[358513604,1745226638711,-1403.73667189,0.00048462,15]
[358513606,1745226638720,-622.10862784,0.00048462,2]
[358513608,1745226638729,-645.23403536,0.00048462,15]
[358513610,1745226638739,-1426.7507966,0.00048462,2]
[358513612,1745226638747,-323.81376188,0.00048462,2]
[358513614,1745226638757,-412.5067645,0.00048462,2]
[358513616,1745226638765,-81980.66016304,0.00048462,2]
[358513618,1745226638774,-3887.62855921,0.00048463,4]
[358513620,1745226638783,-207.22506683,0.00048473,10]
[358513622,1745226638792,-500.0,0.00048473,10]
[358513624,1745226638801,-512.11388262,0.00048473,10]
[358513626,1745226638810,-159.8061936,0.00048473,10]
[358513628,1745226638819,-155.89959446,0.00048473,10]
[358513630,1745226638827,-500.0,0.00048473,10]
[358513632,1745226638836,-379.57208523,0.00048473,2]
[358513634,1745226638845,-77752.5711842,0.0004848,4]
[358513636,1745226638853,-159.17,0.0004848,2]
[358513638,1745226638865,-83534.5038718,0.0004849,5]
[358513640,1745226638875,-210307.55269557,0.000485,2]
[358513643,1745226638883,-3300.0,0.000485,17]
[358513645,1745226638892,-61551.739695,0.00048542,5]
[358513647,1745226638902,-8793.10567072,0.00048551,5]
[358513649,1745226638912,-52758.6340243,0.00048552,5]
[358513651,1745226638921,-237.08420292,0.00048552,7]
[358513653,1745226638930,-4396.55283536,0.00048552,5]
[358513655,1745226638939,-150.0,0.0004856,3]
[358513657,1745226638948,-193.98094703,0.00048561,2]
[358513659,1745226638956,-156.13704687,0.00048561,120]
[358513661,1745226638967,-500.0,0.00048561,120]
[358513663,1745226638976,-500.0,0.00048561,120]
[358513665,1745226638985,-415.65921395,0.00048561,120]
[358513668,1745226638995,-372.3205154,0.00048561,7]
[358513669,1745226639004,-1000.0,0.00048561,120]
[358513672,1745226639014,-1000.0,0.00048561,120]
[358513673,1745226639023,-1000.0,0.00048561,120]
[358513675,1745226639032,-1000.0,0.00048561,120]
[358513677,1745226639041,-1000.0,0.00048561,120]
[358513679,1745226639051,-1000.0,0.00048561,120]
[358513681,1745226639060,-1000.0,0.00048561,120]
[358513683,1745226639069,-1000.0,0.00048561,120]
[358513685,1745226639078,-1000.0,0.00048561,120]
[358513687,1745226639087,-1000.0,0.00048561,120]
[358513689,1745226639096,-1000.0,0.00048561,120]
[358513691,1745226639105,-1000.0,0.00048561,120]
[358513693,1745226639114,-924.08391534,0.00048561,120]
[358513695,1745226639123,-151.0,0.00048561,2]
[358513697,1745226639132,-244.00374545,0.00048561,2]
[358513699,1745226639141,-27867.70804113,0.00048562,30]
[358513701,1745226639151,-27867.70804113,0.00048562,30]
[358513703,1745226639160,-27867.70804113,0.00048562,30]
[358513705,1745226639170,-27867.70804113,0.00048562,30]
[358513708,1745226639179,-841640.58994749,0.00048562,30]
[358513809,1745226639984,-1285.09837437,0.00048562,30]
[358513832,1745226640194,-465.66858125,0.00048562,30]
[358513839,1745226640248,-9096.64373114,0.00048562,30]
[358513841,1745226640260,-8947.21879473,0.00048562,30]
[358513843,1745226640271,-8943.78386462,0.00048562,30]
[358513845,1745226640282,-9077.54866152,0.00048562,30]
[358513847,1745226640294,-8943.84023489,0.00048562,30]
[358513850,1745226640305,-43950.13738598,0.00048562,30]
[358514152,1745226643256,-87961.62469332,0.00048562,30]
[358514411,1745226645703,-268.987887,0.00047899,120]
[358514414,1745226645715,-155.39946091,0.00047899,120]
[358514415,1745226645724,-163.48088779,0.00048562,30]
[358514418,1745226645736,-297.32939999,0.00048562,30]
[358514442,1745226645966,-2448.80505556,0.00048562,30]
[358514444,1745226645978,-7536.72075034,0.00048562,30]
[358514455,1745226646073,-484.13520026,0.00048562,30]
[358515007,1745226751833,-166.08,0.00048462,26]
[358515008,1745226755625,-219.05477693,0.00048462,26]
[358515009,1745226755647,-114.86522307,0.00048473,10]
[358515010,1745226900986,-156.13704687,0.00048574,120]
[358515011,1745226901011,-10.84591555,0.00048574,120]
[358515012,1745226905147,-170.31912275,0.00048,90]
[358515013,1745226992533,-150.0,0.0004288,2]
[358515014,1745227203965,-154.9188,0.00044,5]
[358515015,1745227205585,-154.91874589,0.00044,5]
[358515016,1745227508577,1972964.10247435,0.0002,2]
[358515017,1745227520871,177.46792926,9e-05,2]
[358515018,1745227529490,329.29148111,0.00011,2]
[358515019,1745227542910,-195.84595147,0.0004,2]
[358515020,1745227557459,807.55697892,6.94e-05,2]
[358515023,1745227634148,-394.90604375,0.0004,2]
[358515024,1745227634170,-1337.06369741,0.0004201,2]
[358515025,1745227634192,-119.98734762,0.00044,5]
[358515026,1745227647064,250.8395806,0.000101,2]
[358515027,1745227654059,480.60932832,0.0001,2]
[358515028,1745227665051,450.0,0.00017,2]
[358515029,1745227687512,138312.05152714,0.0002,2]
[358515030,1745227703996,200.0,0.0001634,2]
[358515031,1745227705635,194.65874869,0.000135,2]
[358515032,1745227715499,378.11320709,7.888e-05,2]
[358515035,1745227730145,258.99508731,0.000107,2]
[358515037,1745227755062,-152.0,0.0003725,2]
[358515044,1745227832133,-35.78,0.0003725,2]
[358515045,1745227832142,-172.10027418,0.00040975,2]
[358515050,1745227838223,-77.89972582,0.00040975,2]
[358515051,1745227838232,-127.8991819,0.00042,2]
[358515052,1745227838244,-4006.53015349,0.00042,2]
[358515053,1745227838254,-150.00510649,0.00044,5]
[358515054,1745227838263,-36.29474002,0.00044,2]
[358515055,1745227838275,-213.70525998,0.00044,2]
[358515056,1745227838284,-183.23154298,0.00044456,2]
[358515057,1745227838294,-189.25783037,0.00044515,2]
[358515058,1745227838304,-550.0,0.00044554,5]
[358515060,1745227838313,-395.0,0.00044554,5]
[358515062,1745227838323,-532.896,0.00044556,120]
[358515064,1745227838332,-532.896,0.00044556,120]
[358515065,1745227838342,-532.896,0.00044556,120]
[358515066,1745227838352,-532.896,0.00044556,120]
[358515067,1745227838361,-532.896,0.00044556,120]
[358515069,1745227838370,-503.95267358,0.000446,10]
[358515071,1745227838379,-2001.38,0.000446,2]
[358515073,1745227838388,-522.03,0.000446,2]
[358515075,1745227838398,-8177.37,0.000446,30]
[358515077,1745227838407,-251.65607351,0.00045392,2]
[358515079,1745227838416,-4770.47,0.00045541,2]
[358515080,1745227838426,-161.58,0.00045541,30]
[358515082,1745227838436,-299.99,0.00045541,120]
[358515084,1745227838445,-1105.86,0.00045541,2]
[358515086,1745227838454,-183.23154298,0.00046171,2]
[358515088,1745227838463,-2351.43,0.00046184,2]
[358515090,1745227838473,-491.80274198,0.000463,2]
[358515092,1745227838482,-946.78563424,0.000463,2]
[358515095,1745227838492,-350.64624001,0.000463,2]
[358515097,1745227838501,-150.0,0.00046355,7]
[358515100,1745227838510,-2736.4,0.00046616,2]
[358515103,1745227838519,-1329.91,0.000468,2]
[358515105,1745227838528,-250.0,0.00047011,120]
[358515107,1745227838537,-199.81,0.00047031,120]
[358515109,1745227838546,-188.58,0.00047063,2]
[358515111,1745227838556,-200.0,0.0004707,2]
[358515113,1745227838565,-2322.01,0.00047076,2]
[358515115,1745227838574,-500.0,0.000471,2]
[358515117,1745227838583,-1000.0,0.00047116,2]
[358515119,1745227838592,-278.57,0.00047197,2]
[358515121,1745227838601,-200.0,0.00047206,2]
[358515123,1745227838610,-200.0,0.00047206,2]
[358515125,1745227838619,-659.89,0.00047222,2]
[358515127,1745227838628,-2148.03,0.00047264,2]
[358515129,1745227838637,-948.0,0.00047327,2]
[358515131,1745227838647,-4354.04,0.00047332,2]
[358515132,1745227838656,-160.07758617,0.00047417,2]
[358515134,1745227838665,-770.0,0.00047461,5]
[358515136,1745227838675,-387.61,0.00047517,2]
[358515138,1745227838684,-5816.39,0.00047545,2]
[358515141,1745227838695,-5247.60820403,0.000476,2]
[358515143,1745227838704,-687.52640384,0.00047674,2]
[358515145,1745227838714,-3460.81300672,0.000478,2]
[358515147,1745227838723,-1105.86,0.00047805,2]
[358515148,1745227838733,-183.23154298,0.00047885,2]
[358515150,1745227838742,-352.66,0.00047897,2]
[358515152,1745227838751,-1219.57,0.00047897,2]
[358515154,1745227838760,-1029.26,0.00047897,2]
[358515156,1745227838769,-1400.0,0.000479,17]
[358515158,1745227838778,-150.0,0.00047945,120]
[358515160,1745227838789,-150.0,0.00047945,120]
[358515162,1745227838798,-500.0,0.00047973,10]
[358515164,1745227838807,-500.0,0.00047973,10]
[358515166,1745227838816,-502.88824122,0.00047973,2]
[358515168,1745227838825,-155.89959446,0.00047973,10]
[358515170,1745227838835,-207.22506683,0.00047973,10]
[358515172,1745227838844,-379.57208523,0.00047973,2]
[358515174,1745227838853,-161.34545221,0.00047973,10]
[358515176,1745227838862,-165.69889781,0.00047973,10]
[358515178,1745227838870,-15963.70520515,0.00047975,2]
[358515180,1745227838879,-154.83599955,0.00047985,30]
[358515182,1745227838889,-23900.0,0.00047985,2]
[358515184,1745227838898,-219.02,0.0004799,2]
[358515186,1745227838907,-2900.0,0.00048,17]
[358515188,1745227838916,-1000.0,0.00048,25]
[358515190,1745227838925,-1000.0,0.00048,25]
[358515192,1745227838934,-1000.0,0.00048,25]
[358515194,1745227838942,-1000.0,0.00048,25]
[358515196,1745227838953,-1000.0,0.00048,20]
[358515198,1745227838963,-1000.0,0.00048,20]
[358515200,1745227838972,-1000.0,0.00048,20]
[358515201,1745227838981,-496.0,0.00048,20]
[358515203,1745227838990,-1000.0,0.00048,20]
[358515205,1745227838999,-1000.0,0.00048,16]
[358515207,1745227839009,-1000.0,0.00048,16]
[358515209,1745227839018,-1000.0,0.00048,16]
[358515211,1745227839029,-1000.0,0.00048,12]
[358515213,1745227839038,-1000.0,0.00048,12]
[358515215,1745227839047,-1000.0,0.00048,9]
[358515217,1745227839055,-1000.0,0.00048,9]
[358515219,1745227839064,-1000.0,0.00048,9]
[358515221,1745227839073,-1000.0,0.00048,9]
[358515222,1745227839082,-1014.0,0.00048,12]
[358515224,1745227839092,-1000.0,0.00048,10]
[358515226,1745227839100,-1000.0,0.00048,6]
[358515227,1745227839109,-173.0,0.00048,90]
[358515229,1745227839119,-1000.0,0.00048,2]
[358515231,1745227839128,-1000.0,0.00048,2]
[358515232,1745227839136,-1000.0,0.00048,2]
[358515234,1745227839146,-1000.0,0.00048,2]
[358515236,1745227839154,-1000.0,0.00048,2]
[358515238,1745227839164,-1000.0,0.00048,2]
[358515240,1745227839172,-1000.0,0.00048,2]
[358515241,1745227839181,-1000.0,0.00048,2]
[358515243,1745227839190,-1000.0,0.00048,2]
[358515245,1745227839199,-1000.0,0.00048,2]
[358515247,1745227839208,-1000.0,0.00048,2]
[358515248,1745227839217,-1000.0,0.00048,2]
[358515250,1745227839225,-1000.0,0.00048,2]
[358515252,1745227839234,-1000.0,0.00048,2]
[358515254,1745227839243,-1000.0,0.00048,2]
[358515255,1745227839252,-1000.0,0.00048,2]
[358515257,1745227839261,-1000.0,0.00048,2]
[358515259,1745227839271,-1000.0,0.00048,2]
[358515261,1745227839279,-1000.0,0.00048,2]
[358515262,1745227839288,-1000.0,0.00048,2]
[358515264,1745227839297,-1000.0,0.00048,2]
[358515266,1745227839306,-1000.0,0.00048,2]
[358515267,1745227839315,-1000.0,0.00048,2]
[358515269,1745227839324,-1000.0,0.00048,2]
[358515271,1745227839332,-1000.0,0.00048,2]
[358515273,1745227839341,-1000.0,0.00048,2]
[358515275,1745227839351,-1000.0,0.00048,2]
[358515276,1745227839359,-1000.0,0.00048,2]
[358515278,1745227839368,-1000.0,0.00048,2]
[358515280,1745227839377,-1000.0,0.00048,2]
[358515282,1745227839386,-1000.0,0.00048,2]
[358515284,1745227839395,-1000.0,0.00048,2]
[358515285,1745227839404,-1000.0,0.00048,2]
[358515287,1745227839413,-1000.0,0.00048,2]
[358515289,1745227839422,-1000.0,0.00048,2]
[358515290,1745227839431,-1000.0,0.00048,2]
[358515292,1745227839440,-1000.0,0.00048,2]
[358515294,1745227839450,-1000.0,0.00048,2]
[358515296,1745227839459,-1000.0,0.00048,2]
[358515298,1745227839468,-1000.0,0.00048,2]
[358515300,1745227839478,-1000.0,0.00048,2]
[358515302,1745227839487,-1000.0,0.00048,2]
[358515304,1745227839497,-1000.0,0.00048,2]
[358515305,1745227839507,-1000.0,0.00048,2]
[358515307,1745227839516,-1000.0,0.00048,2]
[358515309,1745227839525,-1000.0,0.00048,2]
[358515311,1745227839535,-1000.0,0.00048,2]
[358515313,1745227839544,-1000.0,0.00048,2]
[358515314,1745227839553,-1000.0,0.00048,2]
[358515316,1745227839562,-1000.0,0.00048,2]
[358515318,1745227839571,-1000.0,0.00048,2]
[358515320,1745227839580,-1000.0,0.00048,2]
[358515322,1745227839589,-1000.0,0.00048,2]
[358515323,1745227839598,-1000.0,0.00048,2]
[358515335,1745227839607,-1000.0,0.00048,2]
[358515337,1745227839742,-1000.0,0.00048,2]
[358515339,1745227839752,-1000.0,0.00048,2]
[358515341,1745227839761,-1000.0,0.00048,2]
[358515343,1745227839770,-1000.0,0.00048,2]
[358515345,1745227839779,-1000.0,0.00048,2]
[358515346,1745227839788,-1000.0,0.00048,2]
[358515348,1745227839798,-1000.0,0.00048,2]
[358515350,1745227839807,-1000.0,0.00048,2]
[358515352,1745227839816,-1000.0,0.00048,2]
[358515354,1745227839826,-1000.0,0.00048,2]
[358515356,1745227839835,-1000.0,0.00048,2]
[358515358,1745227839843,-1000.0,0.00048,2]
[358515359,1745227839852,-1000.0,0.00048,2]
[358515361,1745227839862,-2246.84018034,0.0004808,2]
[358515363,1745227839871,-150.0,0.00048095,7]
[358515365,1745227839881,-4300.0,0.000481,17]
[358515367,1745227839890,-150.0,0.00048162,7]
[358515369,1745227839899,-687.52640384,0.00048167,2]
[358515371,1745227839908,-5800.0,0.000482,17]
[358515372,1745227839917,-219.02,0.0004829,2]
[358515374,1745227839928,-7200.0,0.000483,17]
[358515376,1745227839938,-150.0,0.00048308,7]
[358515378,1745227839949,-150.0,0.00048331,7]
[358515380,1745227839959,-150.0,0.00048331,7]
[358515382,1745227839970,-150.0,0.00048335,7]
[358515384,1745227839980,-151.98,0.00048341,2]
[358515386,1745227839989,-150.0,0.00048342,7]
[358515388,1745227839998,-150.0,0.00048343,7]
[358515390,1745227840007,-150.0,0.00048351,7]
[358515391,1745227840016,-150.0,0.00048352,7]
[358515393,1745227840025,-150.0,0.00048366,7]
[358515394,1745227840034,-150.0,0.00048369,7]
[358515396,1745227840043,-150.0,0.00048383,7]
[358515398,1745227840052,-150.0,0.00048395,7]
[358515401,1745227840062,-300.0,0.00048397,7]
[358515403,1745227840070,-1400.0,0.000484,17]
[358515405,1745227840079,-250.0,0.000484,2]
[358515407,1745227840088,-150.0,0.00048406,7]
[358515408,1745227840098,-150.0,0.0004841,7]
[358515410,1745227840107,-150.0,0.00048427,7]
[358515412,1745227840116,-150.0,0.00048444,7]
[358515414,1745227840125,-150.0,0.0004845,7]
[358515416,1745227840137,-166.7,0.00048453,2]
[358515418,1745227840146,-150.0,0.00048458,7]
[358515420,1745227840155,-580.03975265,0.00048461,75]
[358515422,1745227840164,-1731.67115787,0.00048464,15]
[358515423,1745227840173,-1731.67115786,0.00048467,15]
[358515425,1745227840183,-1731.67115786,0.0004847,15]
[358515427,1745227840192,-150.0,0.00048472,7]
[358515429,1745227840201,-219.02,0.00048472,2]
[358515430,1745227840211,-7348.89,0.00048472,2]
[358515432,1745227840221,-198.161,0.00048473,83]
[358515434,1745227840230,-423.87,0.00048473,10]
[358515436,1745227840240,-622.08,0.00048473,83]
[358515438,1745227840249,-1731.67115786,0.00048473,15]
[358515440,1745227840258,-1731.67115786,0.00048476,15]
[358515442,1745227840267,-1731.67115786,0.0004848,15]
[358515444,1745227840277,-219.02,0.00048482,2]
[358515445,1745227840286,-1731.67115786,0.00048483,15]
[358515447,1745227840295,-1731.67115786,0.00048486,15]
[358515449,1745227840304,-687.52640385,0.00048488,2]
[358515451,1745227840314,-1731.67115786,0.00048489,15]
[358515453,1745227840323,-219.02,0.00048489,2]
[358515455,1745227840332,-219.02,0.00048489,2]
[358515457,1745227840342,-1041.95854375,0.00048489,15]
[358515459,1745227840351,-219.02,0.0004849,2]
[358515460,1745227840361,-1731.67115786,0.00048492,15]
[358515462,1745227840370,-721.99346262,0.00048492,2]
[358515464,1745227840380,-2236.71116954,0.00048492,2]
[358515466,1745227840389,-1976.04970778,0.00048492,2]
[358515468,1745227840399,-193.78831667,0.00048492,10]
[358515470,1745227840408,-1041.95854375,0.00048493,15]
[358515472,1745227840418,-508.17724565,0.00048499,7]
[358515473,1745227840428,-502.3897624,0.00048499,7]
[358515475,1745227840437,-500.0,0.00048499,7]
[358515477,1745227840446,-500.0,0.00048499,7]
[358515479,1745227840455,-500.0,0.00048499,7]
[358515481,1745227840465,-500.0,0.00048499,7]
[358515483,1745227840474,-500.0,0.00048499,7]
[358515485,1745227840483,-500.0,0.00048499,7]
[358515486,1745227840492,-588.5342434,0.00048499,7]
[358515488,1745227840502,-500.0,0.00048499,7]
[358515490,1745227840511,-500.0,0.00048499,7]
[358515492,1745227840520,-500.0,0.00048499,7]
[358515494,1745227840529,-564.1951004,0.00048499,7]
[358515496,1745227840538,-500.0,0.00048499,7]
[358515498,1745227840547,-507.21837456,0.00048499,7]
[358515500,1745227840556,-525.31475404,0.00048499,7]
[358515501,1745227840566,-500.0,0.00048499,7]
[358515503,1745227840576,-500.0,0.00048499,7]
[358515505,1745227840585,-500.0,0.00048499,7]
[358515507,1745227840594,-538.0593284,0.00048499,7]
[358515509,1745227840603,-500.0,0.00048499,7]
[358515511,1745227840614,-566.30084486,0.00048499,7]
[358515513,1745227840623,-500.0,0.00048499,7]
[358515515,1745227840633,-602.57910325,0.00048499,7]
[358515517,1745227840642,-511.82518281,0.00048499,7]
[358515519,1745227840651,-581.65,0.00048499,7]
[358515520,1745227840659,-500.0,0.00048499,7]
[358515522,1745227840669,-500.0,0.00048499,7]
[358515524,1745227840678,-500.0,0.00048499,7]
[358515526,1745227840687,-500.0,0.00048499,7]
[358515528,1745227840697,-500.0,0.00048499,7]
[358515529,1745227840706,-500.0,0.00048499,7]
[358515531,1745227840716,-498.00699,0.00048499,7]
[358515533,1745227840725,-500.0,0.00048499,7]
[358515535,1745227840735,-500.0,0.00048499,7]
[358515537,1745227840744,-500.0,0.00048499,7]
[358515539,1745227840753,-515.3274359,0.00048499,7]
[358515541,1745227840763,-500.0,0.00048499,7]
[358515543,1745227840772,-500.0,0.00048499,7]
[358515544,1745227840782,-500.0,0.00048499,7]
[358515546,1745227840792,-500.0,0.00048499,7]
[358515548,1745227840801,-500.0,0.00048499,7]
[358515550,1745227840810,-500.0,0.00048499,7]
[358515552,1745227840819,-522.14069282,0.00048499,7]
[358515554,1745227840828,-509.67213527,0.00048499,7]
[358515556,1745227840837,-510.48658596,0.00048499,7]
[358515557,1745227840847,-500.0,0.00048499,7]
[358515559,1745227840856,-203.46058736,0.00048499,7]
[358515561,1745227840866,-508.19358261,0.00048499,7]
[358515563,1745227840875,-431.87457738,0.00048499,7]
[358515565,1745227840884,-239.8799124,0.00048499,7]
[358515567,1745227840893,-517.96380861,0.00048499,7]
[358515569,1745227840903,-500.0,0.00048499,7]
[358515571,1745227840912,-521.54529197,0.00048499,7]
[358515572,1745227840921,-515.02709183,0.00048499,7]
[358515574,1745227840931,-500.0,0.00048499,7]
[358515576,1745227840941,-500.0,0.00048499,7]
[358515578,1745227840951,-512.51392121,0.00048499,7]
[358515580,1745227840964,-184.9874649,0.00048499,7]
[358515582,1745227840974,-537.79886844,0.00048499,7]
[358515584,1745227840984,-502.41908503,0.00048499,7]
[358515586,1745227840993,-208.18040093,0.00048499,7]
[358515588,1745227841004,-513.050139,0.00048499,7]
[358515590,1745227841013,-500.0,0.00048499,7]
[358515592,1745227841022,-449.72,0.00048499,7]
[358515593,1745227841031,-528.94503763,0.00048499,7]
[358515595,1745227841042,-508.52585241,0.00048499,7]
[358515597,1745227841055,-506.8656913,0.00048499,7]
[358515599,1745227841064,-505.4096399,0.00048499,7]
[358515601,1745227841073,-500.0,0.00048499,7]
[358515602,1745227841082,-500.0,0.00048499,7]
[358515603,1745227841091,-527.53391386,0.00048499,120]
[358515604,1745227841100,-500.0,0.00048499,7]
[358515605,1745227841109,-1000.0,0.00048499,7]
[358515606,1745227841119,-500.0,0.00048499,7]
[358515607,1745227841128,-500.0,0.00048499,7]
[358515608,1745227841138,-500.0,0.00048499,7]
[358515609,1745227841147,-500.0,0.00048499,7]
[358515610,1745227841157,-636.05415839,0.00048499,7]
[358515611,1745227841166,-502.57506222,0.00048499,7]
[358515612,1745227841176,-574.76434348,0.00048499,7]
[358515613,1745227841185,-505.09588526,0.00048499,7]
[358515614,1745227841194,-500.0,0.00048499,7]
[358515615,1745227841203,-570.0768427,0.00048499,7]
[358515616,1745227841213,-500.0,0.00048499,7]
[358515617,1745227841222,-500.0,0.00048499,7]
[358515618,1745227841232,-500.0,0.00048499,7]
[358515619,1745227841241,-500.0,0.00048499,7]
[358515620,1745227841250,-500.0,0.00048499,7]
[358515621,1745227841259,-500.0,0.00048499,7]
[358515622,1745227841269,-500.0,0.00048499,7]
[358515624,1745227841278,-607.51,0.00048499,7]
[358515625,1745227841287,-500.0,0.00048499,7]
[358515627,1745227841297,-500.0,0.00048499,7]
[358515628,1745227841306,-500.0,0.00048499,7]
[358515630,1745227841315,-500.0,0.00048499,7]
[358515632,1745227841325,-500.0,0.00048499,7]
[358515634,1745227841334,-523.38480097,0.00048499,7]
[358515636,1745227841343,-500.0,0.00048499,7]
[358515638,1745227841352,-500.0,0.00048499,7]
[358515640,1745227841361,-545.20865708,0.00048499,7]
[358515642,1745227841370,-500.0,0.00048499,7]
[358515644,1745227841380,-500.0,0.00048499,7]
[358515646,1745227841389,-507.83935475,0.00048499,7]
[358515648,1745227841398,-500.0,0.00048499,7]
[358515650,1745227841408,-483.61157394,0.00048499,7]
[358515652,1745227841417,-500.0,0.00048499,7]
[358515654,1745227841427,-500.0,0.00048499,7]
[358515656,1745227841437,-500.0,0.00048499,7]
[358515658,1745227841445,-679.58,0.00048499,7]
[358515660,1745227841455,-500.0,0.00048499,7]
[358515662,1745227841463,-500.0,0.00048499,7]
[358515664,1745227841473,-500.0,0.00048499,7]
[358515666,1745227841482,-500.0,0.00048499,7]
[358515668,1745227841491,-500.0,0.00048499,7]
[358515670,1745227841500,-500.0,0.00048499,7]
[358515672,1745227841509,-500.0,0.00048499,7]
[358515674,1745227841519,-500.0,0.00048499,7]
[358515676,1745227841528,-500.0,0.000485,3]
[358515678,1745227841538,-500.0,0.000485,5]
[358515680,1745227841547,-500.19,0.000485,5]
[358515682,1745227841557,-500.0,0.000485,3]
[358515684,1745227841566,-503.26592607,0.000485,10]
[358515686,1745227841575,-150.0,0.000485,7]
[358515688,1745227841585,-1400.0,0.000485,17]
[358515690,1745227841594,-150.0,0.00048506,7]
[358515692,1745227841603,-154.03711879,0.00048509,7]
[358515694,1745227841612,-150.0,0.00048517,7]
[358515696,1745227841621,-150.0,0.00048521,7]
[358515698,1745227841630,-150.0,0.00048523,7]
[358515700,1745227841639,-150.0,0.00048524,7]
[358515702,1745227841649,-150.0,0.00048532,7]
[358515704,1745227841658,-150.0,0.00048535,7]
[358515706,1745227841667,-150.0,0.00048542,7]
[358515708,1745227841677,-219.02,0.00048546,2]
[358515710,1745227841687,-219.02,0.00048546,2]
[358515712,1745227841697,-219.02,0.00048547,2]
[358515714,1745227841706,-500.0,0.00048548,120]
[358515716,1745227841715,-500.0,0.00048548,120]
[358515718,1745227841724,-500.0,0.00048548,120]
[358515720,1745227841733,-500.0,0.00048548,120]
[358515722,1745227841743,-595.28475641,0.00048548,120]
[358515724,1745227841752,-52084.4251568,0.00048556,4]
[358515726,1745227841761,-14881.2643305,0.00048557,4]
[358515728,1745227841770,-553.68960114,0.0004856,7]
[358515730,1745227841779,-517.95427251,0.0004856,7]
[358515732,1745227841788,-500.0,0.0004856,7]
[358515734,1745227841798,-543.9556144,0.0004856,7]
[358515736,1745227841807,-15020.50506864,0.00048561,2]
[358515738,1745227841816,-372.3205154,0.00048561,7]
[358515740,1745227841825,-500.0,0.00048561,7]
[358515742,1745227841835,-165.41916488,0.00048561,7]